fUSD/lending_fUSD_20250524
["ID","MTS","AMOUNT","RATE_DAILY","PERIOD"]
[362236689,1748115055491,-385.90580426,0.00019287,2]
[362236690,1748115055501,-420.0,0.00019287,2]
[362236691,1748115055509,-420.0,0.00019287,2]
[362236692,1748115055517,-420.0,0.00019287,2]
[362236693,1748115055526,-420.0,0.00019287,2]
[362236694,1748115055535,-153.556176,0.00019287,2]
[362236695,1748115055543,-420.0,0.00019287,2]
[362236696,1748115055552,-420.0,0.00019287,2]
[362236697,1748115055561,-181.65025464,0.00019287,2]
[362236698,1748115055570,-151.0,0.00019287,2]
[362236699,1748115055579,-420.0,0.00019287,2]
[362236700,1748115055588,-435.26,0.00019287,2]
[362236701,1748115055598,-420.0,0.00019287,2]
[362236702,1748115055609,-151.0,0.00019287,2]
[362236703,1748115055619,-420.0,0.00019287,2]
[362236704,1748115055628,-241.02661063,0.00019287,2]
[362236705,1748115055638,-151.0,0.00019287,2]
[362236706,1748115055648,-420.0,0.00019287,2]
[362236707,1748115055658,-420.0,0.00019287,2]
[362236708,1748115055667,-420.0,0.00019287,2]
[362236709,1748115055681,-420.0,0.00019287,2]
[362236710,1748115055691,-4085.85,0.00019287,2]
[362236711,1748115055702,-609.33,0.00019287,2]
[362236712,1748115055711,-420.0,0.00019287,2]
[362236713,1748115055719,-4966.72,0.00019287,2]
[362236714,1748115055728,-420.0,0.00019287,2]
[362236715,1748115055737,-420.0,0.00019287,2]
[362236716,1748115055746,-1111.43,0.00019287,2]
[362236717,1748115055756,-420.0,0.00019287,2]
[362236718,1748115055766,-420.0,0.00019287,2]
[362236719,1748115055776,-151.0,0.00019287,2]
[362236720,1748115055786,-420.0,0.00019287,2]
[362236721,1748115055796,-5698.09,0.00019287,2]
[362236722,1748115055806,-5578.62,0.00019287,2]
[362236723,1748115055815,-706.63,0.00019287,2]
[362236724,1748115055825,-151.0,0.00019287,2]
[362236725,1748115055835,-2756.48,0.00019287,2]
[362236726,1748115055845,-13456.5,0.00019287,2]
[362236727,1748115055855,-420.0,0.00019287,2]
[362236728,1748115055866,-2241.13,0.00019287,2]
[362236729,1748115055877,-550.11,0.00019287,2]
[362236730,1748115055887,-420.0,0.00019287,2]
[362236731,1748115055897,-309.38169857,0.00019287,2]
[362236732,1748115055907,-151.0,0.00019287,2]
[362236733,1748115055916,-527.51738673,0.00019287,2]
[362236734,1748115055926,-420.0,0.00019287,2]
[362236735,1748115055936,-1331.72,0.00019287,2]
[362236736,1748115055946,-420.0,0.00019287,2]
[362236737,1748115055956,-420.0,0.00019287,2]
[362236738,1748115055966,-420.0,0.00019287,2]
[362236739,1748115055976,-420.0,0.00019287,2]
[362236740,1748115055985,-420.0,0.00019287,2]
[362236741,1748115055996,-420.0,0.00019287,2]
[362236742,1748115056007,-570.91,0.00019287,2]
[362236743,1748115056017,-420.0,0.00019287,2]
[362236744,1748115056027,-420.0,0.00019287,2]
[362236745,1748115056036,-420.0,0.00019287,2]
[362236746,1748115056046,-420.0,0.00019287,2]
[362236747,1748115056055,-151.0,0.00019287,2]
[362236748,1748115056065,-420.0,0.00019287,2]
[362236749,1748115056075,-420.0,0.00019287,2]
[362236750,1748115056084,-151.0,0.00019287,2]
[362236751,1748115056094,-39118.41922077,0.00019287,2]
[362236752,1748115056400,-21010.60839872,0.00019287,2]
[362236753,1748115056413,-2585.62910263,0.00019287,2]
[362236754,1748115056429,-282.0,0.00019287,2]
[362236755,1748115056441,-473.30138914,0.00019287,2]
[362236756,1748115056634,-1353.18890451,0.00019212,2]
[362236757,1748115056647,-332.20422069,0.00019212,2]
[362236758,1748115056657,-3969.9022562,0.00019287,2]
[362236759,1748115056679,-4908.15603795,0.00019287,2]
[362236760,1748115056707,-114138.14359459,0.00019287,2]
[362236761,1748115056717,-789.83,0.00019287,2]
[362236762,1748115056727,-420.0,0.00019287,2]
[362236763,1748115056737,-420.0,0.00019287,2]
[362236764,1748115056747,-616.34,0.00019287,2]
[362236765,1748115056759,-7354.43,0.00019287,2]
[362236766,1748115056769,-420.0,0.00019287,2]
[362236767,1748115056778,-2348.44,0.00019287,2]
[362236768,1748115056788,-159.234714,0.00019287,2]
[362236769,1748115056797,-2573.5,0.00019287,2]
[362236770,1748115056807,-702.75,0.00019287,2]
[362236771,1748115056819,-2178.19,0.00019287,2]
[362236772,1748115056829,-420.0,0.00019287,2]
[362236773,1748115056839,-420.0,0.00019287,2]
[362236774,1748115056849,-492.45357387,0.00019287,2]
[362236775,1748115056860,-420.0,0.00019287,2]
[362236776,1748115056869,-1227.57,0.00019287,2]
[362236777,1748115056879,-541.11,0.00019287,2]
[362236778,1748115056889,-420.0,0.00019287,2]
[362236779,1748115056899,-2477.15,0.00019287,2]
[362236780,1748115056909,-532.9558384,0.00019287,2]
[362236781,1748115056919,-420.0,0.00019287,2]
[362236782,1748115056930,-523.02647437,0.00019287,2]
[362236783,1748115056939,-420.0,0.00019287,2]
[362236784,1748115056949,-420.0,0.00019287,2]
[362236785,1748115056960,-420.0,0.00019287,2]
[362236786,1748115056970,-420.0,0.00019287,2]
[362236787,1748115056980,-151.0,0.00019287,2]
[362236788,1748115056990,-152.602475,0.00019287,2]
[362236789,1748115057000,-420.0,0.00019287,2]
[362236790,1748115057010,-504.20729028,0.00019287,2]
[362236791,1748115057020,-429.87,0.00019287,2]
[362236792,1748115057030,-420.0,0.00019287,2]
[362236793,1748115057041,-1089.61,0.00019287,2]
[362236794,1748115057051,-2842.27,0.00019287,2]
[362236795,1748115057061,-420.0,0.00019287,2]
[362236796,1748115057070,-420.0,0.00019287,2]
[362236797,1748115057080,-420.0,0.00019287,2]
[362236798,1748115057090,-420.0,0.00019287,2]
[362236799,1748115057100,-420.0,0.00019287,2]
[362236800,1748115057110,-420.0,0.00019287,2]
[362236801,1748115057120,-9209.65,0.00019287,2]
[362236802,1748115057131,-2923.07,0.00019287,2]
[362236803,1748115057141,-420.0,0.00019287,2]
[362236804,1748115057151,-5360.15,0.00019287,2]
[362236805,1748115057162,-420.0,0.00019287,2]
[362236806,1748115057171,-420.0,0.00019287,2]
[362236807,1748115057183,-420.0,0.00019287,2]
[362236808,1748115057193,-420.0,0.00019287,2]
[362236809,1748115057203,-420.0,0.00019287,2]
[362236810,1748115057213,-420.0,0.00019287,2]
[362236811,1748115057224,-5522.98,0.00019287,2]
[362236812,1748115057234,-541.59,0.00019287,2]
[362236813,1748115057244,-420.0,0.00019287,2]
[362236814,1748115057255,-510.78,0.00019287,2]
[362236815,1748115057265,-266.70087592,0.00019287,2]
[362236816,1748115057477,-420.0,0.00019287,2]
[362236817,1748115057488,-420.0,0.00019287,2]
[362236818,1748115057499,-420.0,0.00019287,2]
[362236819,1748115057508,-420.0,0.00019287,2]
[362236820,1748115057517,-420.0,0.00019287,2]
[362236821,1748115057527,-420.0,0.00019287,2]
[362236822,1748115057536,-675.32,0.00019287,2]
[362236823,1748115057545,-274.99323589,0.00019287,2]
[362236824,1748115057813,-420.0,0.00019178,2]
[362236825,1748115057824,-1685.3931252,0.00019245,2]
[362236826,1748115057835,-145.00676411,0.00019287,2]
[362236827,1748115057845,-420.0,0.00019287,2]
[362236828,1748115057855,-420.0,0.00019287,2]
[362236829,1748115057865,-420.0,0.00019287,2]
[362236830,1748115057875,-420.0,0.00019287,2]
[362236831,1748115057885,-420.0,0.00019287,2]
[362236832,1748115057894,-257.69002856,0.00019287,2]
[362236833,1748115057904,-10569.08,0.00019287,2]
[362236834,1748115057914,-420.0,0.00019287,2]
[362236835,1748115057924,-420.0,0.00019287,2]
[362236836,1748115057933,-420.0,0.00019287,2]
[362236837,1748115057946,-157.13243166,0.00019287,2]
[362236838,1748115057956,-862.52,0.00019287,2]
[362236839,1748115057966,-151.0,0.00019287,2]
[362236840,1748115057977,-420.0,0.00019287,2]
[362236841,1748115057988,-354.92097503,0.00019296,2]
[362236842,1748115057998,-603.65836902,0.00019297,2]
[362236843,1748115058008,-806.0,0.000193,2]
[362236844,1748115058017,-806.0,0.000193,2]
[362236845,1748115058026,-806.0,0.000193,2]
[362236846,1748115058036,-458.56,0.000193,2]
[362236847,1748115058045,-6061.71841447,0.00019312,2]
[362236848,1748115058055,-222.071636,0.00019315,2]
[362236849,1748115058064,-375.69063762,0.00019315,2]
[362236850,1748115058073,-420.0,0.00019315,2]
[362236851,1748115058083,-490.12443674,0.00019315,2]
[362236852,1748115058094,-420.0,0.00019315,2]
[362236853,1748115058103,-1241.04,0.00019315,2]
[362236854,1748115058115,-420.0,0.00019315,2]
[362236855,1748115058125,-420.0,0.00019315,2]
[362236856,1748115058136,-151.0,0.00019315,2]
[362236857,1748115058145,-420.0,0.00019315,2]
[362236858,1748115058156,-420.0,0.00019315,2]
[362236859,1748115058166,-420.0,0.00019315,2]
[362236860,1748115058176,-200.0,0.00019315,2]
[362236861,1748115058185,-420.0,0.00019315,2]
[362236862,1748115058194,-420.0,0.00019315,2]
[362236863,1748115058204,-151.0,0.00019315,2]
[362236864,1748115058214,-569.62,0.00019315,2]
[362236865,1748115058223,-420.0,0.00019315,2]
[362236866,1748115058233,-420.0,0.00019315,2]
[362236867,1748115058243,-420.0,0.00019315,2]
[362236868,1748115058255,-420.0,0.00019315,2]
[362236869,1748115058265,-1509.95,0.00019315,2]
[362236870,1748115058275,-1012.03,0.00019315,2]
[362236871,1748115058284,-1201.17,0.00019315,2]
[362236872,1748115058293,-420.0,0.00019315,2]
[362236873,1748115058303,-1007.69,0.00019315,2]
[362236874,1748115058312,-420.0,0.00019315,2]
[362236875,1748115058322,-420.0,0.00019315,2]
[362236876,1748115058331,-506.43023577,0.00019315,2]
[362236877,1748115058341,-420.0,0.00019315,2]
[362236878,1748115058350,-1958.34,0.00019315,2]
[362236879,1748115058360,-420.0,0.00019315,2]
[362236880,1748115058369,-420.0,0.00019315,2]
[362236881,1748115058378,-420.0,0.00019315,2]
[362236882,1748115058388,-420.0,0.00019315,2]
[362236883,1748115058397,-1294.31,0.00019315,2]
[362236884,1748115058406,-151.0,0.00019315,2]
[362236885,1748115058416,-151.0,0.00019315,2]
[362236886,1748115058426,-420.0,0.00019315,2]
[362236887,1748115058435,-420.0,0.00019315,2]
[362236888,1748115058445,-420.0,0.00019315,2]
[362236889,1748115058455,-1748.26,0.00019315,2]
[362236890,1748115058466,-420.0,0.00019315,2]
[362236891,1748115058475,-451.9,0.00019315,2]
[362236892,1748115058484,-420.0,0.00019315,2]
[362236893,1748115058495,-420.0,0.00019315,2]
[362236894,1748115058504,-167.19043693,0.00019315,2]
[362236895,1748115058514,-336.73191582,0.00019315,2]
[362236896,1748115058524,-241.0750962,0.00019315,2]
[362236897,1748115058533,-346.55525742,0.00019315,2]
[362236898,1748115058543,-420.0,0.00019315,2]
[362236899,1748115058552,-555.82,0.00019315,2]
[362236900,1748115058562,-420.0,0.00019315,2]
[362236901,1748115058572,-420.0,0.00019315,2]
[362236902,1748115058581,-420.0,0.00019315,2]
[362236903,1748115058590,-420.0,0.00019315,2]
[362236904,1748115058599,-536.45,0.00019315,2]
[362236905,1748115058610,-529.65206754,0.00019315,2]
[362236906,1748115058619,-420.0,0.00019315,2]
[362236907,1748115058629,-420.0,0.00019315,2]
[362236908,1748115058640,-420.0,0.00019315,2]
[362236909,1748115058650,-420.0,0.00019315,2]
[362236910,1748115058660,-431.71558837,0.00019315,2]
[362236911,1748115058671,-420.0,0.00019315,2]
[362236912,1748115058682,-420.0,0.00019315,2]
[362236913,1748115058691,-151.0,0.00019315,2]
[362236914,1748115058700,-420.0,0.00019315,2]
[362236915,1748115058711,-456.324027,0.00019315,2]
[362236916,1748115058721,-277.865015,0.00019315,2]
[362236917,1748115058732,-420.0,0.00019315,2]
[362236918,1748115058745,-420.0,0.00019315,2]
[362236919,1748115058756,-456.324027,0.00019315,2]
[362236920,1748115058767,-420.0,0.00019315,2]
[362236921,1748115058777,-151.0,0.00019315,2]
[362236922,1748115058788,-420.0,0.00019315,2]
[362236923,1748115058797,-420.0,0.00019315,2]
[362236924,1748115058807,-420.0,0.00019315,2]
[362236925,1748115058818,-420.0,0.00019315,2]
[362236926,1748115058826,-420.0,0.00019315,2]
[362236927,1748115058835,-420.0,0.00019315,2]
[362236928,1748115058845,-521.54611917,0.00019315,2]
[362236929,1748115058854,-420.0,0.00019315,2]
[362236930,1748115058863,-420.0,0.00019315,2]
[362236931,1748115058872,-420.0,0.00019315,2]
[362236932,1748115058881,-420.0,0.00019315,2]
[362236933,1748115058890,-420.0,0.00019315,2]
[362236934,1748115058900,-258.67912794,0.00019315,2]
[362236935,1748115058910,-219.66054973,0.00019315,2]
[362236936,1748115058920,-426.6108647,0.00019315,2]
[362236937,1748115058935,-151.0,0.00019315,2]
[362236938,1748115058945,-420.0,0.00019315,2]
[362236939,1748115058954,-420.0,0.00019315,2]
[362236940,1748115058964,-292.457361,0.00019315,2]
[362236941,1748115058974,-157.84566734,0.00019315,2]
[362236942,1748115058985,-151.0,0.00019315,2]
[362236943,1748115058995,-420.0,0.00019315,2]
[362236944,1748115059006,-420.0,0.00019315,2]
[362236945,1748115059017,-420.0,0.00019315,2]
[362236946,1748115059027,-420.0,0.00019315,2]
[362236947,1748115059037,-4085.85,0.00019315,2]
[362236948,1748115059046,-609.33,0.00019315,2]
[362236949,1748115059056,-420.0,0.00019315,2]
[362236950,1748115059065,-4966.72,0.00019315,2]
[362236951,1748115059075,-420.0,0.00019315,2]
[362236952,1748115059085,-206.80149,0.00019315,2]
[362236953,1748115059100,-213.19851,0.00019315,2]
[362236954,1748115059109,-42.30149,0.00019315,2]
[362236955,1748115059121,-656.37326125,0.00019315,2]
[362236956,1748115059132,-412.75524875,0.00019315,2]
[362236957,1748115059141,-420.0,0.00019315,2]
[362236958,1748115059150,-420.0,0.00019315,2]
[362236959,1748115059160,-160.969228,0.00019315,2]
[362236960,1748115059169,-420.0,0.00019315,2]
[362236961,1748115059179,-2163.69565152,0.00019315,2]
[362236962,1748115198260,500.0,0.0002737,120]
[362236964,1748115315966,244.83,0.00013699,2]
[362236965,1748115468817,305.61598539,0.0002739,120]
[362236966,1748115493671,2628.5135053,0.0002739,120]
[362236967,1748115544410,-250.0,0.00018385,2]
[362236968,1748115544437,-250.0,0.00018396,2]
[362236969,1748115544464,-5000.0,0.00018406,2]
[362236970,1748115544492,-155.585812,0.00018928,2]
[362236971,1748115544520,-1200.0,0.00018999,2]
[362236972,1748115544545,-3144.414188,0.00019,2]
[362236973,1748115796764,500.0,0.0002737,120]
[362236974,1748115830958,5000.0,0.000273,120]
[362236975,1748116009149,-229.71,0.00018232,2]
[362236976,1748116009170,-114.69763708,0.00018238,2]
[362236977,1748116030115,-58.30236292,0.00018238,2]
[362236978,1748116030138,-163.92,0.00018244,2]
[362236979,1748116030159,-150.0,0.00018279,7]
[362236980,1748116030182,-5247.86,0.00018303,2]
[362236981,1748116030203,-1000.0,0.00018338,2]
[362236982,1748116030224,-289.42229683,0.00018895,2]
[362236983,1748116030247,-155.585812,0.00018928,2]
[362236984,1748116030268,-300.0,0.00018998,2]
[362236985,1748116030289,-1132.0,0.00018999,2]
[362236986,1748116030310,-189.0,0.00018999,2]
[362236987,1748116030330,-5422.86838751,0.00019,2]
[362236988,1748116030354,-158.93892523,0.00019078,2]
[362236989,1748116030375,-170.03100195,0.00019078,2]
[362236990,1748116030397,-3428.15493367,0.00019078,2]
[362236991,1748116030418,-3428.15493359,0.00019121,2]
[362236992,1748116030439,-3428.15493359,0.00019163,2]
[362236993,1748116030461,-207.4,0.00019166,2]
[362236994,1748116030483,-151.0,0.00019166,2]
[362236995,1748116030505,-450.23299609,0.00019176,2]
[362236996,1748116030528,-150.0,0.00019177,2]
[362236997,1748116030550,-420.0,0.00019178,2]
[362236998,1748116030572,-420.0,0.00019178,2]
[362236999,1748116030593,-420.94169528,0.00019178,2]
[362237000,1748116030614,-989.87,0.00019178,2]
[362237001,1748116030636,-420.0,0.00019178,2]
[362237002,1748116030656,-420.0,0.00019178,2]
[362237003,1748116030679,-420.0,0.00019178,2]
[362237004,1748116030700,-551.69951042,0.00019178,2]
[362237005,1748116030721,-420.0,0.00019178,2]
[362237006,1748116030743,-420.0,0.00019178,2]
[362237007,1748116030766,-465.86961466,0.00019178,2]
[362237008,1748116030786,-420.0,0.00019178,2]
[362237009,1748116030807,-377.00922756,0.00019178,2]
[362237010,1748116030828,-420.0,0.00019178,2]
[362237011,1748116030850,-420.0,0.00019178,2]
[362237012,1748116030871,-420.0,0.00019178,2]
[362237013,1748116030891,-420.0,0.00019178,2]
[362237014,1748116030913,-420.0,0.00019178,2]
[362237015,1748116030935,-420.0,0.00019178,2]
[362237016,1748116030956,-420.0,0.00019178,2]
[362237017,1748116030976,-303.31832971,0.00019178,2]
[362237018,1748116030997,-420.0,0.00019178,2]
[362237019,1748116031018,-420.0,0.00019178,2]
[362237020,1748116031043,-185.479335,0.00019178,2]
[362237021,1748116031065,-271.81845641,0.00019178,2]
[362237022,1748116031087,-420.0,0.00019178,2]
[362237023,1748116031108,-152.925138,0.00019178,2]
[362237024,1748116031134,-500.0,0.00019178,2]
[362237025,1748116031158,-500.0,0.00019178,2]
[362237026,1748116031180,-203.55946065,0.00019178,2]
[362237027,1748116031202,-420.0,0.00019178,2]
[362237028,1748116031225,-420.0,0.00019178,2]
[362237029,1748116031246,-420.0,0.00019178,2]
[362237030,1748116031268,-420.0,0.00019178,2]
[362237031,1748116031288,-420.0,0.00019178,2]
[362237032,1748116031310,-338.51317614,0.00019178,2]
[362237033,1748116031331,-152.1194269,0.00019178,2]
[362237034,1748116031352,-262.5229378,0.00019178,2]
[362237035,1748116031372,-481.08685645,0.00019178,2]
[362237036,1748116031393,-420.0,0.00019178,2]
[362237037,1748116031414,-474.06161914,0.00019178,2]
[362237038,1748116031434,-420.0,0.00019178,2]
[362237039,1748116031454,-420.0,0.00019178,2]
[362237040,1748116031474,-420.0,0.00019178,2]
[362237041,1748116031495,-588.85,0.00019178,2]
[362237042,1748116031515,-420.0,0.00019178,2]
[362237043,1748116031535,-420.0,0.00019178,2]
[362237044,1748116031556,-420.0,0.00019178,2]
[362237045,1748116031577,-420.0,0.00019178,2]
[362237046,1748116031598,-420.0,0.00019178,2]
[362237047,1748116031618,-420.0,0.00019178,2]
[362237048,1748116031639,-420.0,0.00019178,2]
[362237049,1748116031659,-420.0,0.00019178,2]
[362237050,1748116031678,-557.94279715,0.00019178,2]
[362237051,1748116031698,-420.0,0.00019178,2]
[362237052,1748116031719,-420.0,0.00019178,2]
[362237053,1748116031739,-420.0,0.00019178,2]
[362237054,1748116031760,-420.0,0.00019178,2]
[362237055,1748116031780,-420.0,0.00019178,2]
[362237056,1748116031800,-420.0,0.00019178,2]
[362237057,1748116031820,-474.24712476,0.00019178,2]
[362237058,1748116031841,-420.0,0.00019178,2]
[362237059,1748116031862,-420.0,0.00019178,2]
[362237060,1748116031882,-420.0,0.00019178,2]
[362237061,1748116031903,-420.0,0.00019178,2]
[362237062,1748116031923,-619.08,0.00019178,2]
[362237063,1748116031944,-420.0,0.00019178,2]
[362237064,1748116031964,-420.0,0.00019178,2]
[362237065,1748116031985,-420.0,0.00019178,2]
[362237066,1748116032005,-420.0,0.00019178,2]
[362237067,1748116032025,-444.41100251,0.00019178,2]
[362237068,1748116032050,-420.0,0.00019178,2]
[362237069,1748116032070,-420.0,0.00019178,2]
[362237070,1748116032091,-420.0,0.00019178,2]
[362237071,1748116032111,-420.0,0.00019178,2]
[362237072,1748116032136,-420.0,0.00019178,2]
[362237073,1748116032157,-465.84518046,0.00019178,2]
[362237074,1748116032176,-420.0,0.00019178,2]
[362237075,1748116032197,-424.18634037,0.00019178,2]
[362237076,1748116032218,-420.0,0.00019178,2]
[362237077,1748116032239,-420.0,0.00019178,2]
[362237078,1748116032259,-420.0,0.00019178,2]
[362237079,1748116032279,-420.0,0.00019178,2]
[362237080,1748116032298,-420.0,0.00019178,2]
[362237081,1748116032319,-420.0,0.00019178,2]
[362237082,1748116032339,-420.0,0.00019178,2]
[362237083,1748116032358,-226.30529847,0.00019178,2]
[362237084,1748116032378,-420.0,0.00019178,2]
[362237085,1748116032398,-427.84817996,0.00019178,2]
[362237086,1748116032419,-420.0,0.00019178,2]
[362237087,1748116032440,-514.54117639,0.00019178,2]
[362237088,1748116032460,-2000.0,0.00019178,2]
[362237089,1748116032480,-420.0,0.00019178,2]
[362237090,1748116032501,-420.0,0.00019178,2]
[362237091,1748116032521,-420.0,0.00019178,2]
[362237092,1748116032543,-420.0,0.00019178,2]
[362237093,1748116032563,-424.51874007,0.00019178,2]
[362237094,1748116032583,-420.0,0.00019178,2]
[362237095,1748116032605,-341.7762185,0.00019178,2]
[362237096,1748116032775,-2864.50151047,0.00019078,2]
[362237097,1748116032795,-474.77463616,0.00019166,2]
[362237098,1748116032815,-78.2237815,0.00019178,2]
[362237099,1748116032841,-420.0,0.00019178,2]
[362237100,1748116032863,-420.0,0.00019178,2]
[362237101,1748116032884,-420.0,0.00019178,2]
[362237102,1748116032905,-420.0,0.00019178,2]
[362237103,1748116032926,-420.0,0.00019178,2]
[362237104,1748116032946,-319.86561635,0.00019178,2]
[362237105,1748116032966,-420.0,0.00019178,2]
[362237106,1748116033249,-420.0,0.00019178,2]
[362237107,1748116033271,-420.0,0.00019178,2]
[362237108,1748116033292,-420.0,0.00019178,2]
[362237109,1748116033313,-420.0,0.00019178,2]
[362237110,1748116033340,-420.0,0.00019178,2]
[362237111,1748116033361,-389.31786696,0.00019178,2]
[362237112,1748116033384,-406.42490167,0.00019178,2]
[362237113,1748116033406,-420.0,0.00019178,2]
[362237114,1748116033426,-420.0,0.00019178,2]
[362237115,1748116033447,-420.0,0.00019178,2]
[362237116,1748116033468,-420.0,0.00019178,2]
[362237117,1748116033488,-420.0,0.00019178,2]
[362237118,1748116033511,-420.0,0.00019178,2]
[362237119,1748116033534,-420.0,0.00019178,2]
[362237120,1748116033556,-222.071645,0.00019178,2]
[362237121,1748116033577,-420.0,0.00019178,2]
[362237122,1748116033599,-420.0,0.00019178,2]
[362237123,1748116033622,-420.0,0.00019178,2]
[362237124,1748116033643,-420.0,0.00019178,2]
[362237125,1748116033664,-420.0,0.00019178,2]
[362237126,1748116033686,-439.09207273,0.00019178,2]
[362237127,1748116033707,-420.0,0.00019178,2]
[362237128,1748116033728,-420.0,0.00019178,2]
[362237129,1748116033749,-420.0,0.00019178,2]
[362237130,1748116033770,-420.0,0.00019178,2]
[362237131,1748116033791,-420.0,0.00019178,2]
[362237132,1748116033812,-420.0,0.00019178,2]
[362237133,1748116033832,-420.0,0.00019178,2]
[362237134,1748116033854,-420.0,0.00019178,2]
[362237135,1748116033874,-420.0,0.00019178,2]
[362237136,1748116033897,-420.0,0.00019178,2]
[362237137,1748116033919,-420.0,0.00019178,2]
[362237138,1748116033940,-420.0,0.00019178,2]
[362237139,1748116033960,-419.11674444,0.00019178,2]
[362237140,1748116033982,-420.0,0.00019178,2]
[362237141,1748116034004,-792.48,0.00019178,2]
[362237142,1748116034024,-420.0,0.00019178,2]
[362237143,1748116034049,-420.0,0.00019178,2]
[362237144,1748116034069,-420.0,0.00019178,2]
[362237145,1748116034089,-420.0,0.00019178,2]
[362237146,1748116034110,-420.0,0.00019178,2]
[362237147,1748116034137,-420.0,0.00019178,2]
[362237148,1748116034159,-420.0,0.00019178,2]
[362237149,1748116034181,-420.0,0.00019178,2]
[362237150,1748116034203,-438.57025378,0.00019178,2]
[362237151,1748116034224,-1297.43,0.00019178,2]
[362237152,1748116034245,-500.47,0.00019178,2]
[362237153,1748116034266,-20.42899181,0.00019178,2]
[362237154,1748116047100,-207.4,0.00019067,2]
[362237155,1748116047124,-2864.50151044,0.00019118,2]
[362237156,1748116047146,-2864.50151044,0.00019157,2]
[362237157,1748116047166,-668.65185757,0.00019166,2]
[362237158,1748116047188,-417.89585905,0.00019178,2]
[362237159,1748116047210,-442.54644996,0.00019178,2]
[362237160,1748116047231,-420.0,0.00019178,2]
[362237161,1748116047251,-239.1365508,0.00019178,2]
[362237162,1748116047272,-420.0,0.00019178,2]
[362237163,1748116047292,-264.24,0.00019178,2]
[362237164,1748116047313,-290.19778262,0.00019178,2]
[362237165,1748116047333,-420.0,0.00019178,2]
[362237166,1748116047354,-420.0,0.00019178,2]
[362237167,1748116047375,-1326.64,0.00019178,2]
[362237168,1748116047395,-486.48320036,0.00019178,2]
[362237169,1748116047416,-420.0,0.00019178,2]
[362237170,1748116047438,-420.0,0.00019178,2]
[362237171,1748116047459,-420.0,0.00019178,2]
[362237172,1748116047480,-1802.19,0.00019178,2]
[362237173,1748116047501,-420.0,0.00019178,2]
[362237174,1748116047521,-420.0,0.00019178,2]
[362237175,1748116047542,-927.35,0.00019178,2]
[362237176,1748116047563,-420.0,0.00019178,2]
[362237177,1748116047584,-420.0,0.00019178,2]
[362237178,1748116047605,-1188.36,0.00019178,2]
[362237179,1748116047628,-420.0,0.00019178,2]
[362237180,1748116047649,-420.0,0.00019178,2]
[362237181,1748116047670,-1105.39,0.00019178,2]
[362237182,1748116047691,-426.39853467,0.00019178,2]
[362237183,1748116047712,-420.0,0.00019178,2]
[362237184,1748116047734,-420.0,0.00019178,2]
[362237185,1748116047754,-420.0,0.00019178,2]
[362237186,1748116047775,-420.0,0.00019178,2]
[362237187,1748116047796,-420.0,0.00019178,2]
[362237188,1748116047819,-420.0,0.00019178,2]
[362237189,1748116047841,-420.0,0.00019178,2]